Workbook

Sheet Budget recherche (vierge)
B1: Budget sur la durée du projet de recherche
B3: Merci de remplir uniquement les cellules en jaune.
B5: Nom du projet | C5: Responsable du projet | E5: Entité UNIGE | G5: Mandant | I5: Date
B8: À option: convertisseur d'heures en mois | D8: Nombre d'heures | G8: Durée en mois | I8: =ROUNDUP(F8/(21*8),2)&" mois" -> 0 mois
B10: Coût direct additionnel
B11: Catégorie de personnel (Choisir dans la liste déroulante ci-dessous) | C11: Nbre Poste | D11: Taux d'activité (en %) | E11: Durée en mois | F11: Salaire mensuel, si connu d'avance (yc. 13ème salaire et sans charges soc.) | G11: Salaire moy. indicatif (sans ch. soc.) | H11: Charges sociales +23% | I11: Coût | J11: Coût locaux admin. / an | K11: Coût locaux admin. | M11: Bailleurs de fonds
M12: CHF | N12: %
B14: Colonne1 | C14: Colonne2 | D14: Colonne3 | E14: Colonne4 | F14: Colonne5 | H14: 6 | I14: 7 | J14: 8 | K14: -
G15: =IF(OR($B15=0,$F15<>0),"",VLOOKUP('Budget recherche (vierge)'!$B15,'Références listes déroulantes'!$A$4:$E$27,5,FALSE)) ->  | H15: =IF(OR($F15<>"",$G15<>""),1.23,"") ->  | I15: =IF($B15=0,"",IF($F15=0,C15*D15*E15*G15*H15,C15*D15*E15*F15*H15)) ->  | J15: =IF($B15=0,"",VLOOKUP($B15,'Références listes déroulantes'!$A$4:$G$27,7,FALSE)) ->  | K15: =_xlfn.IFS($E15=0,0,$D15>=0.5,($J15/12)*$E15,$D15<0.5,($J15/12)*$E15*$D15) -> 0 | M15: =IF(OR($N15=0,$I15=""),"",$N15*$I15) -> 
G16: =IF(OR($B16=0,$F16<>0),"",VLOOKUP('Budget recherche (vierge)'!$B16,'Références listes déroulantes'!$A$4:$E$27,5,FALSE)) ->  | I16: =IF($B16=0,"",IF($F16=0,C16*D16*E16*G16*H16,C16*D16*E16*F16*H16)) ->  | J16: =IF($B16=0,"",VLOOKUP($B16,'Références listes déroulantes'!$A$4:$G$27,7,FALSE)) ->  | K16: =_xlfn.IFS($E16=0,0,$D16>=0.5,($J16/12)*$E16,$D16<0.5,($J16/12)*$E16*$D16) -> 0 | M16: =IF(OR($N16=0,$I16=""),"",$N16*$I16) -> 
G17: =IF(OR($B17=0,$F17<>0),"",VLOOKUP('Budget recherche (vierge)'!$B17,'Références listes déroulantes'!$A$4:$E$27,5,FALSE)) ->  | J17: =IF($B17=0,"",VLOOKUP($B17,'Références listes déroulantes'!$A$4:$G$27,7,FALSE)) ->  | K17: =_xlfn.IFS($E17=0,0,$D17>=0.5,($J17/12)*$E17,$D17<0.5,($J17/12)*$E17*$D17) -> 0
G18: =IF(OR($B18=0,$F18<>0),"",VLOOKUP('Budget recherche (vierge)'!$B18,'Références listes déroulantes'!$A$4:$E$27,5,FALSE)) ->  | J18: =IF($B18=0,"",VLOOKUP($B18,'Références listes déroulantes'!$A$4:$G$27,7,FALSE)) ->  | K18: =_xlfn.IFS($E18=0,0,$D18>=0.5,($J18/12)*$E18,$D18<0.5,($J18/12)*$E18*$D18) -> 0
G19: =IF(OR($B19=0,$F19<>0),"",VLOOKUP('Budget recherche (vierge)'!$B19,'Références listes déroulantes'!$A$4:$E$27,5,FALSE)) ->  | J19: =IF($B19=0,"",VLOOKUP($B19,'Références listes déroulantes'!$A$4:$G$27,7,FALSE)) ->  | K19: 0
G20: =IF(OR($B20=0,$F20<>0),"",VLOOKUP('Budget recherche (vierge)'!$B20,'Références listes déroulantes'!$A$4:$E$27,5,FALSE)) ->  | J20: =IF($B20=0,"",VLOOKUP($B20,'Références listes déroulantes'!$A$4:$G$27,7,FALSE)) ->  | K20: 0
G21: =IF(OR($B21=0,$F21<>0),"",VLOOKUP('Budget recherche (vierge)'!$B21,'Références listes déroulantes'!$A$4:$E$27,5,FALSE)) ->  | J21: =IF($B21=0,"",VLOOKUP($B21,'Références listes déroulantes'!$A$4:$G$27,7,FALSE)) ->  | K21: 0
G22: =IF(OR($B22=0,$F22<>0),"",VLOOKUP('Budget recherche (vierge)'!$B22,'Références listes déroulantes'!$A$4:$E$27,5,FALSE)) ->  | I22: =IF($B22=0,"",IF($F22=0,C22*D22*E22*G22*H22,C22*D22*E22*F22*H22)) ->  | J22: =IF($B22=0,"",VLOOKUP($B22,'Références listes déroulantes'!$A$4:$G$27,7,FALSE)) ->  | K22: 0
F23: Charges de personnel (sous-total) | I23: =SUM(I14:I22) -> 0 | J23: =SUM(J14:J22) -> 0 | K23: =SUM(K14:K22) -> 0 | M23: =SUM(M15:M22) -> 0 | N23: =IF(I23=0,0,M23/I23) -> 0
B24: Coût direct d'encadrement
B25: Catégorie de personnel (Choisir dans la liste déroulante ci-dessous) | C25: Nbre Poste | D25: Taux d'activité (en %) | E25: Durée en mois | F25: Salaire mensuel, si connu d'avance (yc. 13ème salaire et sans charges soc.) | G25: Salaire moy. indicatif (sans ch. soc.) | H25: Charges sociales +23% | I25: Coût | M25: Bailleurs de fonds
M26: CHF | N26: %
B28: Colonne1 | C28: Colonne2 | D28: Colonne3 | E28: Colonne4 | F28: Colonne5 | H28: 6 | I28: 7
G29: =IF(OR($B29=0,$F29<>0),"",VLOOKUP('Budget recherche (vierge)'!$B29,'Références listes déroulantes'!$A$4:$E$27,5,FALSE)) ->  | H29: =IF(OR($F29<>"",$G29<>""),1.23,"") ->  | I29: =IF($B29=0,"",IF($F29=0,C29*D29*E29*G29*H29,C29*D29*E29*F29*H29)) ->  | M29: =IF(OR($N29=0,$I29=""),"",$N29*$I29) -> 
G30: =IF(OR($B30=0,$F30<>0),"",VLOOKUP('Budget recherche (vierge)'!$B30,'Références listes déroulantes'!$A$4:$E$27,5,FALSE)) ->  | I30: =IF($B30=0,"",IF($F30=0,C30*D30*E30*G30*H30,C30*D30*E30*F30*H30)) ->  | M30: =IF(OR($N30=0,$I30=""),"",$N30*$I30) -> 
G31: =IF(OR($B31=0,$F31<>0),"",VLOOKUP('Budget recherche (vierge)'!$B31,'Références listes déroulantes'!$A$4:$E$27,5,FALSE)) ->  | I31: =IF($B31=0,"",IF($F31=0,C31*D31*E31*G31*H31,C31*D31*E31*F31*H31)) -> 
G32: =IF(OR($B32=0,$F32<>0),"",VLOOKUP('Budget recherche (vierge)'!$B32,'Références listes déroulantes'!$A$4:$E$27,5,FALSE)) ->  | I32: =IF($B32=0,"",IF($F32=0,C32*D32*E32*G32*H32,C32*D32*E32*F32*H32)) -> 
G33: =IF(OR($B33=0,$F33<>0),"",VLOOKUP('Budget recherche (vierge)'!$B33,'Références listes déroulantes'!$A$4:$E$27,5,FALSE)) ->  | I33: =IF($B33=0,"",IF($F33=0,C33*D33*E33*G33*H33,C33*D33*E33*F33*H33)) -> 
F34: Charges de personnel (sous-total) | I34: =SUM(I28:I33) -> 0 | M34: =SUM(M28:M33) -> 0 | N34: =IF(I34=0,0,M34/I34) -> 0
B35: Coût direct de fonctionnement
B36: Consommables (Choisir dans la liste déroulante ci-dessous) | I36: Coût | M36: Bailleurs de fonds
M37: CHF | N37: %
B38: Colonne1 | C38: Colonne2 | D38: Colonne3 | E38: Colonne4 | F38: Colonne5 | G38: Colonne6 | H38: Colonne7 | I38: Colonne8
M39: =IF(OR($N39=0,$I39=""),"",$N39*$I39) -> 
F42: Dépenses générales (sous-total) | I42: =SUM(I38:I41) -> 0 | M42: =SUM(M39:M41) -> 0 | N42: =IF(I42=0,0,M42/I42) -> 0
B43: Coûts liés aux équipements
B44: Immobilisations corporelles (Choisir dans la liste déroulante ci-dessous) | C44: Connaissez-vous le coût lié à l'équipement? | D44: Durée du projet en mois | E44: Coût d'acquisition | F44: Durée de vie de l'équipement en années | G44: Coût annuel | I44: Coût | M44: Bailleurs de fonds
M45: CHF | N45: %
B46: Colonne1 | C46: Colonne2 | D46: Colonne3 | E46: Colonne4 | F46: Colonne5 | H46: Colonne6 | I46: - | J46: Colonne7 | K46: Colonne8 | L46: Colonne82 | M46: Colonne83 | N46: Colonne84 | O46: Colonne837 | P46: Colonne838 | Q46: Colonne839 | R46: Colonne840 | S46: Colonne841 | T46: Colonne842 | U46: Colonne843 | V46: Colonne844
F47: =IF($B47=0,"",VLOOKUP($B47,'Références listes déroulantes'!$A$40:$B$48,2,FALSE)) ->  | H47: =IF($B47=0,"",E47/F47) ->  | I47: =IF(AND(G47<>0,Tableau79[[#This Row],[Colonne2]]="Oui"),G47,IF(OR(H47="",H47=0,D47=0),0,(H47/12)*D47)) -> 0 | M47: =IF(OR($N47=0,$I47=""),"",$N47*$I47) -> 
F48: =IF($B48=0,"",VLOOKUP($B48,'Références listes déroulantes'!$A$40:$B$48,2,FALSE)) ->  | H48: =IF($B48=0,"",E48/F48) ->  | I48: =IF(AND(G48<>0,Tableau79[[#This Row],[Colonne2]]="Oui"),G48,IF(OR(H48="",H48=0,D48=0),0,(H48/12)*D48)) -> 0
F49: =IF($B49=0,"",VLOOKUP($B49,'Références listes déroulantes'!$A$40:$B$48,2,FALSE)) ->  | I49: =IF(AND(G49<>0,Tableau79[[#This Row],[Colonne2]]="Oui"),G49,IF(OR(H49="",H49=0,D49=0),0,(H49/12)*D49)) -> 0
F50: Amortissements (sous-total) | I50: =SUM(I46:I49) -> 0 | M50: =SUM(M46:M49) -> 0 | N50: =IF(I50=0,0,M50/I50) -> 0
B51: Coûts liés aux locaux administratifs
B52: En fonction de la catégorie de personnel liée au coût direct additionnel | F52: Loyer (sous-total) | I52: =$K$23 -> 0 | M52: =IF(OR($N52=0,$I52=0),0,$N52*$I52) -> 0
B53: Coûts de support administratif
B54: En pourcentage des coûts directs aditionnels et des coûts de fonctionnement | H54: 0.1 | I54: =($I$42+$I$23)*$H$54 -> 0 | M54: =IF(OR($N54=0,$I54=0),0,$N54*$I54) -> 0
F56: Coût total du projet | I56: =SUM($I$23,$I34, $I$50,$I$52,$I$42,$I$54) -> 0 | M56: =SUM($M$54,$M$52,$M$50,$M$42,$M$34,$M$23) -> 0 | N56: =IF(I56=0,0,M56/I56) -> 0
B58: Récapitulatif | C58: UNIGE | D58: Bailleurs de fonds | E58: Total
B59: Charges de personnel | C59: =$I$23+$I$34-$M$23-$M$34 -> 0 | D59: =M23+M34 -> 0 | E59: =SUM(C59:D59) -> 0
B60: Dépenses générales | C60: =$I$42-$M$42 -> 0 | D60: =$M$42 -> 0 | E60: =SUM(C60:D60) -> 0
B61: Amortissement | C61: =$I$50-$M$50 -> 0 | D61: =$M$50 -> 0 | E61: =SUM(C61:D61) -> 0
B62: Loyer | C62: =$I$52-$M$52 -> 0 | D62: =$M$52 -> 0 | E62: =SUM(C62:D62) -> 0
B63: Support administratif | C63: =$I$54-$M$54 -> 0 | D63: =$M$54 -> 0 | E63: =SUM(C63:D63) -> 0
B64: Total des coûts | C64: =SUM(C59:C63) -> 0 | D64: =SUM(D59:D63) -> 0 | E64: =SUM(C64:D64) -> 0
B65: Répartition en pourcent | C65: =IF(C$64=0,"",C$64/$E$64) ->  | D65: =IF(D$64=0,"",D$64/$E$64) ->  | E65: =IF(E$64=0,"",E$64/$E$64) -> 
B67: Contact:
B68: Pour toutes informations complémentaires ou éventuelles questions, vous pouvez contacter le Service du budget à | H68: budget@unige.ch

Sheet Exemple
B1: Budget sur la durée du projet de recherche
B3: Merci de remplir uniquement les cellules en jaune.
B5: Nom du projet | C5: Responsable du projet | E5: Entité UNIGE | G5: Mandataire | I5: Date
B6: Léman Azure | C6: Jérôme TARTEMPION | E6: CISA | G6: CERN | I6: 2014-07-15
B8: A option: convertisseur d'heures en mois | D8: Nombre d'heures | F8: =8*21*6 -> 1008 | G8: Durée en mois | I8: 6 mois
B10: Coût direct additionnel
B11: Catégorie de personnel (Choisir dans la liste déroulante ci-dessous) | C11: Nbre Poste | D11: Taux d'activité (en %) | E11: Durée en mois | F11: Salaire mensuel, si connu d'avance (yc. 13ème salaire et sans charges soc.) | G11: Salaire moy. indicatif (sans ch. soc.) | H11: Charges sociales +20% | I11: Coût | J11: Coût locaux admin. / an | K11: Coût locaux admin. | M11: Bailleurs de fonds
M12: CHF | N12: %
B14: Colonne1 | C14: Colonne2 | D14: Colonne3 | E14: Colonne4 | F14: Colonne5 | H14: 6 | I14: 7 | J14: 8 | K14: -
B15: 1400-Assistants et post-doc | C15: 1 | D15: 0.8 | E15: 6 | G15: =IF(OR($B15=0,$F15<>0),"",VLOOKUP(Exemple!$B15,'Références listes déroulantes'!$A$4:$E$27,5,FALSE)) -> 6250 | H15: =IF(OR($F15<>"",$G15<>""),1.2,"") -> 1.2 | I15: =IF($B15=0,"",IF($F15=0,C15*D15*E15*G15*H15,C15*D15*E15*F15*H15)) -> 36000 | J15: =IF($B15=0,"",VLOOKUP($B15,'Références listes déroulantes'!$A$4:$G$27,7,FALSE)) -> 2940 | K15: =_xlfn.IFS($E15=0,0,$D15>=0.5,($J15/12)*$E15,$D15<0.5,($J15/12)*$E15*$D15) -> 1470 | M15: =IF(OR($N15=0,$I15=""),"",$N15*$I15) -> 36000 | N15: 1
G16: =IF(OR($B16=0,$F16<>0),"",VLOOKUP(Exemple!$B16,'Références listes déroulantes'!$A$4:$E$27,5,FALSE)) ->  | H16: =IF(OR($F16<>"",$G16<>""),1.2,"") ->  | I16: =IF($B16=0,"",IF($F16=0,C16*D16*E16*G16*H16,C16*D16*E16*F16*H16)) ->  | J16: =IF($B16=0,"",VLOOKUP($B16,'Références listes déroulantes'!$A$4:$G$27,7,FALSE)) ->  | K16: 0 | M16: =IF(OR($N16=0,$I16=""),"",$N16*$I16) -> 
G17: =IF(OR($B17=0,$F17<>0),"",VLOOKUP(Exemple!$B17,'Références listes déroulantes'!$A$4:$E$27,5,FALSE)) ->  | J17: =IF($B17=0,"",VLOOKUP($B17,'Références listes déroulantes'!$A$4:$G$27,7,FALSE)) ->  | K17: 0
G18: =IF(OR($B18=0,$F18<>0),"",VLOOKUP(Exemple!$B18,'Références listes déroulantes'!$A$4:$E$27,5,FALSE)) ->  | J18: =IF($B18=0,"",VLOOKUP($B18,'Références listes déroulantes'!$A$4:$G$27,7,FALSE)) ->  | K18: 0
G19: =IF(OR($B19=0,$F19<>0),"",VLOOKUP(Exemple!$B19,'Références listes déroulantes'!$A$4:$E$27,5,FALSE)) ->  | J19: =IF($B19=0,"",VLOOKUP($B19,'Références listes déroulantes'!$A$4:$G$27,7,FALSE)) ->  | K19: 0
G20: =IF(OR($B20=0,$F20<>0),"",VLOOKUP(Exemple!$B20,'Références listes déroulantes'!$A$4:$E$27,5,FALSE)) ->  | J20: =IF($B20=0,"",VLOOKUP($B20,'Références listes déroulantes'!$A$4:$G$27,7,FALSE)) ->  | K20: 0
G21: =IF(OR($B21=0,$F21<>0),"",VLOOKUP(Exemple!$B21,'Références listes déroulantes'!$A$4:$E$27,5,FALSE)) ->  | J21: =IF($B21=0,"",VLOOKUP($B21,'Références listes déroulantes'!$A$4:$G$27,7,FALSE)) ->  | K21: 0
G22: =IF(OR($B22=0,$F22<>0),"",VLOOKUP(Exemple!$B22,'Références listes déroulantes'!$A$4:$E$27,5,FALSE)) ->  | I22: =IF($B22=0,"",IF($F22=0,C22*D22*E22*G22*H22,C22*D22*E22*F22*H22)) ->  | J22: =IF($B22=0,"",VLOOKUP($B22,'Références listes déroulantes'!$A$4:$G$27,7,FALSE)) ->  | K22: 0
F23: Charges de personnel (sous-total) | I23: =SUM(I14:I22) -> 36000 | J23: =SUM(J14:J22) -> 2940 | K23: =SUM(K14:K22) -> 1470 | M23: =SUM(M15:M22) -> 36000 | N23: =IF(I23=0,0,M23/I23) -> 1
B24: Coût direct d'encadrement
B25: Catégorie de personnel (Choisir dans la liste déroulante ci-dessous) | C25: Nbre Poste | D25: Taux d'activité (en %) | E25: Durée en mois | F25: Salaire mensuel, si connu d'avance (yc. 13ème salaire et sans charges soc.) | G25: Salaire moy. indicatif (sans ch. soc.) | H25: Charges sociales +20% | I25: Coût | M25: Bailleurs de fonds
M26: CHF | N26: %
B28: Colonne1 | C28: Colonne2 | D28: Colonne3 | E28: Colonne4 | F28: Colonne5 | H28: 6 | I28: 7
B29: 0100-Professeurs ordinaires | C29: 1 | D29: 0.05 | E29: 6 | G29: =IF(OR($B29=0,$F29<>0),"",VLOOKUP(Exemple!$B29,'Références listes déroulantes'!$A$4:$E$27,5,FALSE)) -> 17250 | H29: =IF(OR($F29<>"",$G29<>""),1.2,"") -> 1.2 | I29: =IF($B29=0,"",IF($F29=0,C29*D29*E29*G29*H29,C29*D29*E29*F29*H29)) -> 6210 | M29: =IF(OR($N29=0,$I29=""),"",$N29*$I29) -> 4968 | N29: 0.8
G30: =IF(OR($B30=0,$F30<>0),"",VLOOKUP(Exemple!$B30,'Références listes déroulantes'!$A$4:$E$27,5,FALSE)) ->  | H30: =IF(OR($F30<>"",$G30<>""),1.2,"") ->  | I30: =IF($B30=0,"",IF($F30=0,C30*D30*E30*G30*H30,C30*D30*E30*F30*H30)) -> 
G31: =IF(OR($B31=0,$F31<>0),"",VLOOKUP(Exemple!$B31,'Références listes déroulantes'!$A$4:$E$27,5,FALSE)) ->  | H31: =IF(OR($F31<>"",$G31<>""),1.2,"") ->  | I31: =IF($B31=0,"",IF($F31=0,C31*D31*E31*G31*H31,C31*D31*E31*F31*H31)) -> 
G32: =IF(OR($B32=0,$F32<>0),"",VLOOKUP(Exemple!$B32,'Références listes déroulantes'!$A$4:$E$27,5,FALSE)) ->  | H32: =IF(OR($F32<>"",$G32<>""),1.2,"") ->  | I32: =IF($B32=0,"",IF($F32=0,C32*D32*E32*G32*H32,C32*D32*E32*F32*H32)) -> 
G33: =IF(OR($B33=0,$F33<>0),"",VLOOKUP(Exemple!$B33,'Références listes déroulantes'!$A$4:$E$27,5,FALSE)) ->  | H33: =IF(OR($F33<>"",$G33<>""),1.2,"") ->  | I33: =IF($B33=0,"",IF($F33=0,C33*D33*E33*G33*H33,C33*D33*E33*F33*H33)) -> 
F34: Charges de personnel (sous-total) | I34: =SUM(I28:I33) -> 6210 | M34: =SUM(M28:M33) -> 4968 | N34: =IF(I34=0,0,M34/I34) -> 0.8
B35: Coût direct de fonctionnement
B36: Consommables (Choisir dans la liste déroulante ci-dessous) | I36: Coût | M36: Bailleurs de fonds
M37: CHF | N37: %
B38: Colonne1 | C38: Colonne2 | D38: Colonne3 | E38: Colonne4 | F38: Colonne5 | G38: Colonne6 | H38: Colonne7 | I38: Colonne8
E39: Déplacements | I39: 500 | M39: =IF(OR($N39=0,$I39=""),"",$N39*$I39) -> 500 | N39: 1
F42: Dépenses générales (sous-total) | I42: =SUM(I38:I41) -> 500 | M42: =SUM(M39:M41) -> 500 | N42: =IF(I42=0,0,M42/I42) -> 1
B43: Coûts liés aux équipements
B44: Immobilisations corporelles (Choisir dans la liste déroulante ci-dessous) | C44: Connaissez-vous le coût lié à l'équipement? | D44: Durée du projet en mois | E44: Coût d'acquisition | F44: Durée de vie de l'équipement en années | G44: Coût annuel | I44: Coût | M44: Bailleurs de fonds
M45: CHF | N45: %
B46: Colonne1 | C46: Colonne2 | D46: Colonne3 | E46: Colonne4 | F46: Colonne5 | H46: Colonne6 | I46: - | J46: Colonne7 | K46: Colonne8 | L46: Colonne82 | M46: Colonne83 | N46: Colonne84 | O46: Colonne837 | P46: Colonne838 | Q46: Colonne839 | R46: Colonne840 | S46: Colonne841 | T46: Colonne842 | U46: Colonne843 | V46: Colonne844
B47: Mobilier | C47: Non | D47: 6 | E47: 5000 | F47: =IF($B47=0,"",VLOOKUP($B47,'Références listes déroulantes'!$A$40:$B$48,2,FALSE)) -> 8 | H47: =IF($B47=0,"",E47/F47) -> 625 | I47: =IF(AND(G47<>0,Tableau7[[#This Row],[Colonne2]]="Oui"),G47,IF(OR(H47="",H47=0,D47=0),0,(H47/12)*D47)) -> 312.5 | M47: =IF(OR($N47=0,$I47=""),"",$N47*$I47) -> 31.25 | N47: 0.1
F48: =IF($B48=0,"",VLOOKUP($B48,'Références listes déroulantes'!$A$40:$B$48,2,FALSE)) ->  | H48: =IF($B48=0,"",E48/F48) ->  | I48: =IF(AND(G48<>0,Tableau7[[#This Row],[Colonne2]]="Oui"),G48,IF(OR(H48="",H48=0,D48=0),0,(H48/12)*D48)) -> 0
B49: Appareils scientifiques | C49: Oui | F49: =IF($B49=0,"",VLOOKUP($B49,'Références listes déroulantes'!$A$40:$B$48,2,FALSE)) -> 5 | G49: 5000 | H49: 0 | I49: =IF(AND(G49<>0,Tableau7[[#This Row],[Colonne2]]="Oui"),G49,IF(OR(H49="",H49=0,D49=0),0,(H49/12)*D49)) -> 5000 | M49: 5000 | N49: 1
F50: Amortissements (sous-total) | I50: =SUM(I46:I49) -> 5312.5 | M50: =SUM(M46:M49) -> 5031.25 | N50: =IF(I50=0,0,M50/I50) -> 0.9470588235
B51: Coûts liés aux locaux administratifs
B52: En fonction de la catégorie de personnel liée au coût direct additionnel | F52: Loyer (sous-total) | I52: =$K$23 -> 1470 | M52: =IF(OR($N52=0,$I52=0),0,$N52*$I52) -> 294 | N52: 0.2
B53: Coûts de support administratif
B54: En pourcentage des coûts directs aditionnels et des coûts de fonctionnement | H54: 0.1 | I54: =($I$42+$I$23)*$H$54 -> 3650 | M54: =IF(OR($N54=0,$I54=0),0,$N54*$I54) -> 730 | N54: 0.2
F56: Coût total du projet | I56: =SUM($I$23,$I34, $I$50,$I$52,$I$42,$I$54) -> 53142.5 | M56: =SUM($M$54,$M$52,$M$50,$M$42,$M$34,$M$23) -> 47523.25 | N56: =IF(I56=0,0,M56/I56) -> 0.8942607141
B58: Récapitulatif | C58: UNIGE | D58: Bailleurs de fonds | E58: Total
B59: Charges de personnel | C59: =$I$23+$I$34-$M$23-$M$34 -> 1242 | D59: =M23+M34 -> 40968 | E59: =SUM(C59:D59) -> 42210
B60: Dépenses générales | C60: =$I$42-$M$42 -> 0 | D60: =$M$42 -> 500 | E60: =SUM(C60:D60) -> 500
B61: Amortissement | C61: =$I$50-$M$50 -> 281.25 | D61: =$M$50 -> 5031.25 | E61: 5312.5
B62: Loyer | C62: =$I$52-$M$52 -> 1176 | D62: =$M$52 -> 294 | E62: 1470
B63: Support administratif | C63: =$I$54-$M$54 -> 2920 | D63: =$M$54 -> 730 | E63: 3650
B64: Total des coûts | C64: =SUM(C59:C63) -> 5619.25 | D64: =SUM(D59:D63) -> 47523.25 | E64: 53142.5
B65: Répartition en pourcent | C65: =IF(C$64=0,"",C$64/$E$64) -> 0.1057392859 | D65: =IF(D$64=0,"",D$64/$E$64) -> 0.8942607141 | E65: 1
B67: Contact:
B68: Pour toutes informations complémentaires ou éventuelles questions, vous pouvez contacter le Service du budget à | H68: budget@unige.ch

Sheet Glossaire
A1: Budget sur la durée du projet de recherche
A3: Glossaire
A5: Coût: | B5: Tous les coûts s'entendent pour l'ensemble de la durée du projet.
A6: Coût direct additionnel: | B6: Coût supplémentaire pour mener le projet en terme de charges en personnel.
A7: Coût direct d'encadrement: | B7: Les coûts directs d'encadrement concernent les ressources en personnel du corps enseignant et corps professoral nécessaires à l’encadrement du projet.
A8: Nbre Poste | B8: Le nombre de poste désigne ici le nombre de personne , et non des équivalents plein temps. Il ne peut y avoir que des nombres entiers.
A9: Taux d'activité (en %) | B9: Le taux consacré au projet (40h par semaine = 100%).
A10: Durée en mois | B10: Le nombre de mois durant lequel le collaborateur travaille pour le projet.
A11: Salaire mensuel, si connu d'avance (sans charges soc.) | B11: Si vous connaissez d'avance le salaire de la personne, veuillez inscrire le salaire mensuel en excluant toutes charges sociales payées par l'employeur. Si vous conaissez seulement la classe et l'annuité de la personne, vous pouvez utiliser l'échelle de traitements ci-après.
A12: Echelle de traitement | B12: https://www.ge.ch/document/echelle-traitements-au-01012020.
A13: Salaire moy. Indicatif (sans ch. soc.) | B13: Le salaire moyen mensuel se calcule automatiquement en fonction de la catégorie de personnel. Il est indicatif et utilisé quand le salaire n'est pas connu d'avance.
A14: Coût direct de fonctionnement | B14: Ces coûts concernent tous les consommables dont l'utilisation est immédiate. Tout bien pouvant être amorti sur plusieurs années doit être exclu de ce type de dépenses, et doivent être considéré comme équipements (immobilisation corporelle).
A15: Coûts liés aux équipements | B15: Ces coûts sont rattachés à l'utilisation d'équipement dont la durée de vie dépend du type de bien. Les coûts liés aux équipements se calculent en fonction du coût d'acquisition du bien, de sa durée de vie et de l'utilisation de l'équipement en mois.
A16: Coûts liés aux locaux | B16: Les coûts liés aux locaux représentent les charges d'infrastructure qui varient selon la catégorie de personnel liée au coût direct additionnel. Le calcul prend en compte le coût des locaux selon la catégorie de personnel, la durée du projet ainsi que le taux d'activité s'il est inférieur à 50%. Pour un taux d'activité égal ou supérieur à 50% on considère que les locaux seront occupés à 100% pendant la durée du projet.
A17: Coûts de support administratif | B17: Ces coûts peuvent être assimilés à des overheads. Ce sont des coûts indirects liés à l'administration centrale.

Sheet Références listes déroulantes (hidden)
B2: Budget 2018
A3: liste2 | B3: EPT | C3: Salaire | D3: Salaire moyen / an | E3: Salaire moyen mensuel | F3: m2 | G3: Coût locaux admin
A4: 0100-Professeurs ordinaires | D4: 207000 | E4: =D4/12 -> 17250 | F4: 20 | G4: =F4*$B$32 -> 7840
A5: 0150-Professeurs associés | D5: 164000 | E5: =D5/12 -> 13666.66667 | F5: 15 | G5: 5880
A6: 0200-Professeurs assistants | D6: 140000 | E6: 11666.66667 | F6: 15 | G6: 5880
A7: 0500-Professeurs associés (PAE) | D7: 155000 | E7: 12916.66667 | F7: 15 | G7: 5880
A8: 0600-Professeurs titulaires | D8: 157000 | E8: 13083.33333 | F8: 15 | G8: 5880
A9: 1100-Chargés d'Ens., Cons. Etudes | D9: 131000 | E9: 10916.66667 | F9: 10 | G9: 3920
A10: 1200-MER,chefs de clinique scient. | D10: 151000 | E10: 12583.33333 | F10: 10 | G10: 3920
A11: 1220-Chargés de cours | D11: 147000 | E11: 12250 | F11: 10 | G11: 3920
A12: 1260-Coll. scientifique I et II | D12: 117000 | E12: 9750 | F12: 10 | G12: 3920
A13: 1300-Maîtres assistants | D13: 100000 | E13: 8333.333333 | F13: 7.5 | G13: 2940
A14: 1400-Assistants et post-doc | D14: 75000 | E14: 6250 | F14: 7.5 | G14: 2940
A15: 1401-Assistants-médecins | D15: 99000 | E15: 8250 | F15: 7.5 | G15: 2940
A16: 1510-Auxiliaires de Recherche | D16: 58000 | E16: 4833.333333 | F16: 7.5 | G16: 2940
A17: 2000-Personnel scientifiques | D17: 129000 | E17: 10750 | F17: 10 | G17: 3920
A18: 2100-Techniciens | D18: 103000 | E18: 8583.333333 | F18: 9 | G18: 3528
A19: 2200-Laborants et ass. techniques | D19: 94000 | E19: 7833.333333 | F19: 9 | G19: 3528
A20: 2300-Aides ass. techn et aides labo | D20: 78000 | E20: 6500 | F20: 9 | G20: 3528
A21: 2400-Bibliothécaires, documentalist | D21: 104000 | E21: 8666.666667 | F21: 12 | G21: 4704
A22: 2700-Adm, chefs serv, commis adm | D22: 124000 | E22: 10333.33333 | F22: 15 | G22: 5880
A23: 2705-Coordination info documentaire | D23: 120000 | E23: 10000 | F23: 9 | G23: 3528
A24: 2710-BDA Responsables | D24: 109000 | E24: 9083.333333 | F24: 15 | G24: 5880
A25: 2715-BDA Spécialistes disciplines | D25: 107000 | E25: 8916.666667 | F25: 12 | G25: 4704
A26: 2800-Secr, comptables, aide bibl | D26: 89000 | E26: 7416.666667 | F26: 9 | G26: 3528
A27: 2805-Commis 2 DIS | D27: 58000 | E27: 4833.333333 | F27: 9 | G27: 3528
A30: liste3 | B30: Coûts / m2
A31: Archivage et surfaces d'entreposage | B31: 196
A32: Bureaux | B32: 392
A33: Locaux du domaine social | B33: 430
A34: Bibliothèques | B34: 468
A35: Salle de cours | B35: 667
A36: Laboratoires | B36: 805
A39: liste4 | B39: Durée d'utilité | D39: liste4bis | E39: Durée d'utilité
A40: Mobilier | B40: 8 | D40: Mobilier | E40: 8
A41: Machines et outillage | B41: 5 | D41: Machines et outillage | E41: 5
A42: Appareils scientifiques | B42: 5 | D42: Appareils scientifiques | E42: 5
A43: Véhicules | B43: 5 | D43: Matériel informatique | E43: 4
A44: Matériel de bureau | B44: 4
A45: Matériel audio-visuel | B45: 4
A46: Matériel informatique | B46: 4
A47: Aménagement | B47: 10
A48: Autres | B48: 4
A51: liste5
A52: Fourniture
A53: Entretien mobilier & machine
A54: Déplacements
A55: Consommables
A56: Divers
A59: liste6
A60: Oui
A61: Non

Sheet Exporter la feuille de calcul (hidden)
A1: LOC_ANNEE | B1: BAT_C_ALPHA | C1: BAT_NO_BAT_PLAN | D1: BAT_NOM | E1: STATUT | F1: TYPLOCAL | G1: LIBELLE_TYPE | H1: DESCRIPTION_COUT | I1: COUT_M2 | J1: SURFACE
A2: 2011 | B2: BC | C2: 1 | D2: UNI BASTIONS | E2: A | F2: AR | G2: ARCHIVES | H2: Archivage et surfaces d'entreposage (Ar) | I2: 196 | J2: 17
A3: 2011 | B3: BC | C3: 1 | D3: UNI BASTIONS | E3: A | F3: AU | G3: AUDITOIRE | H3: Salles de cours (Hö) | I3: 667 | J3: 67
A4: 2011 | B4: BC | C4: 1 | D4: UNI BASTIONS | E4: A | F4: AU | G4: AUDITOIRE | H4: Salles de cours (Hö) | I4: 667 | J4: 69.5
A5: 2011 | B5: BC | C5: 1 | D5: UNI BASTIONS | E5: A | F5: AU | G5: AUDITOIRE | H5: Salles de cours (Hö) | I5: 667 | J5: 75.5
A6: 2011 | B6: BC | C6: 1 | D6: UNI BASTIONS | E6: A | F6: AU | G6: AUDITOIRE | H6: Salles de cours (Hö) | I6: 667 | J6: 76.5
A7: 2011 | B7: BC | C7: 1 | D7: UNI BASTIONS | E7: A | F7: AU | G7: AUDITOIRE | H7: Salles de cours (Hö) | I7: 667 | J7: 76.5
A8: 2011 | B8: BC | C8: 1 | D8: UNI BASTIONS | E8: A | F8: AU | G8: AUDITOIRE | H8: Salles de cours (Hö) | I8: 667 | J8: 79
A9: 2011 | B9: BC | C9: 1 | D9: UNI BASTIONS | E9: A | F9: AU | G9: AUDITOIRE | H9: Salles de cours (Hö) | I9: 667 | J9: 79
A10: 2011 | B10: BC | C10: 1 | D10: UNI BASTIONS | E10: A | F10: AU | G10: AUDITOIRE | H10: Salles de cours (Hö) | I10: 667 | J10: 107.5
A11: 2011 | B11: BC | C11: 1 | D11: UNI BASTIONS | E11: A | F11: AU | G11: AUDITOIRE | H11: Salles de cours (Hö) | I11: 667 | J11: 119
A12: 2011 | B12: BC | C12: 1 | D12: UNI BASTIONS | E12: A | F12: AU | G12: AUDITOIRE | H12: Salles de cours (Hö) | I12: 667 | J12: 168.5
A13: 2011 | B13: BC | C13: 1 | D13: UNI BASTIONS | E13: A | F13: AU | G13: AUDITOIRE | H13: Salles de cours (Hö) | I13: 667 | J13: 202.5
A14: 2011 | B14: BC | C14: 1 | D14: UNI BASTIONS | E14: A | F14: AU | G14: AUDITOIRE | H14: Salles de cours (Hö) | I14: 667 | J14: 302.5
A15: 2011 | B15: BC | C15: 1 | D15: UNI BASTIONS | E15: A | F15: AX | G15: ANNEXES | H15: Archivage et surfaces d'entreposage (Ar) | I15: 196 | J15: 25
A16: 2011 | B16: BC | C16: 1 | D16: UNI BASTIONS | E16: A | F16: BI | G16: BIBLIOTHEQUE, SALLE DE LECTURE | H16: Bibliothèques (Bi) | I16: 468 | J16: 2
A17: 2011 | B17: BC | C17: 1 | D17: UNI BASTIONS | E17: A | F17: BI | G17: BIBLIOTHEQUE, SALLE DE LECTURE | H17: Bibliothèques (Bi) | I17: 468 | J17: 16.9
A18: 2011 | B18: BC | C18: 1 | D18: UNI BASTIONS | E18: A | F18: BI | G18: BIBLIOTHEQUE, SALLE DE LECTURE | H18: Bibliothèques (Bi) | I18: 468 | J18: 22.5
A19: 2011 | B19: BC | C19: 1 | D19: UNI BASTIONS | E19: A | F19: BI | G19: BIBLIOTHEQUE, SALLE DE LECTURE | H19: Bibliothèques (Bi) | I19: 468 | J19: 35
A20: 2011 | B20: BC | C20: 1 | D20: UNI BASTIONS | E20: A | F20: BI | G20: BIBLIOTHEQUE, SALLE DE LECTURE | H20: Bibliothèques (Bi) | I20: 468 | J20: 38.5
A21: 2011 | B21: BC | C21: 1 | D21: UNI BASTIONS | E21: A | F21: BI | G21: BIBLIOTHEQUE, SALLE DE LECTURE | H21: Bibliothèques (Bi) | I21: 468 | J21: 40
A22: 2011 | B22: BC | C22: 1 | D22: UNI BASTIONS | E22: A | F22: BI | G22: BIBLIOTHEQUE, SALLE DE LECTURE | H22: Bibliothèques (Bi) | I22: 468 | J22: 54.3
A23: 2011 | B23: BC | C23: 1 | D23: UNI BASTIONS | E23: A | F23: BI | G23: BIBLIOTHEQUE, SALLE DE LECTURE | H23: Bibliothèques (Bi) | I23: 468 | J23: 55.6
A24: 2011 | B24: BC | C24: 1 | D24: UNI BASTIONS | E24: A | F24: BI | G24: BIBLIOTHEQUE, SALLE DE LECTURE | H24: Bibliothèques (Bi) | I24: 468 | J24: 58
A25: 2011 | B25: BC | C25: 1 | D25: UNI BASTIONS | E25: A | F25: BI | G25: BIBLIOTHEQUE, SALLE DE LECTURE | H25: Bibliothèques (Bi) | I25: 468 | J25: 58
A26: 2011 | B26: BC | C26: 1 | D26: UNI BASTIONS | E26: A | F26: BI | G26: BIBLIOTHEQUE, SALLE DE LECTURE | H26: Bibliothèques (Bi) | I26: 468 | J26: 148
A27: 2011 | B27: BC | C27: 1 | D27: UNI BASTIONS | E27: A | F27: BI | G27: BIBLIOTHEQUE, SALLE DE LECTURE | H27: Bibliothèques (Bi) | I27: 468 | J27: 246
A28: 2011 | B28: BC | C28: 1 | D28: UNI BASTIONS | E28: A | F28: BU | G28: BUREAU | H28: Bureaux (Bü) | I28: 392 | J28: 6
A29: 2011 | B29: BC | C29: 1 | D29: UNI BASTIONS | E29: A | F29: BU | G29: BUREAU | H29: Bureaux (Bü) | I29: 392 | J29: 10
A30: 2011 | B30: BC | C30: 1 | D30: UNI BASTIONS | E30: A | F30: BU | G30: BUREAU | H30: Bureaux (Bü) | I30: 392 | J30: 11.5
A31: 2011 | B31: BC | C31: 1 | D31: UNI BASTIONS | E31: A | F31: BU | G31: BUREAU | H31: Bureaux (Bü) | I31: 392 | J31: 12
A32: 2011 | B32: BC | C32: 1 | D32: UNI BASTIONS | E32: A | F32: BU | G32: BUREAU | H32: Bureaux (Bü) | I32: 392 | J32: 12
A33: 2011 | B33: BC | C33: 1 | D33: UNI BASTIONS | E33: A | F33: BU | G33: BUREAU | H33: Bureaux (Bü) | I33: 392 | J33: 12.5
A34: 2011 | B34: BC | C34: 1 | D34: UNI BASTIONS | E34: A | F34: BU | G34: BUREAU | H34: Bureaux (Bü) | I34: 392 | J34: 12.5
A35: 2011 | B35: BC | C35: 1 | D35: UNI BASTIONS | E35: A | F35: BU | G35: BUREAU | H35: Bureaux (Bü) | I35: 392 | J35: 12.5
A36: 2011 | B36: BC | C36: 1 | D36: UNI BASTIONS | E36: A | F36: BU | G36: BUREAU | H36: Bureaux (Bü) | I36: 392 | J36: 14
A37: 2011 | B37: BC | C37: 1 | D37: UNI BASTIONS | E37: A | F37: BU | G37: BUREAU | H37: Bureaux (Bü) | I37: 392 | J37: 14.5
A38: 2011 | B38: BC | C38: 1 | D38: UNI BASTIONS | E38: A | F38: BU | G38: BUREAU | H38: Bureaux (Bü) | I38: 392 | J38: 15
A39: 2011 | B39: BC | C39: 1 | D39: UNI BASTIONS | E39: A | F39: BU | G39: BUREAU | H39: Bureaux (Bü) | I39: 392 | J39: 15
A40: 2011 | B40: BC | C40: 1 | D40: UNI BASTIONS | E40: A | F40: BU | G40: BUREAU | H40: Bureaux (Bü) | I40: 392 | J40: 15.5
A41: 2011 | B41: BC | C41: 1 | D41: UNI BASTIONS | E41: A | F41: BU | G41: BUREAU | H41: Bureaux (Bü) | I41: 392 | J41: 15.5
A42: 2011 | B42: BC | C42: 1 | D42: UNI BASTIONS | E42: A | F42: BU | G42: BUREAU | H42: Bureaux (Bü) | I42: 392 | J42: 16.5
A43: 2011 | B43: BC | C43: 1 | D43: UNI BASTIONS | E43: A | F43: BU | G43: BUREAU | H43: Bureaux (Bü) | I43: 392 | J43: 17
A44: 2011 | B44: BC | C44: 1 | D44: UNI BASTIONS | E44: A | F44: BU | G44: BUREAU | H44: Bureaux (Bü) | I44: 392 | J44: 17.5
A45: 2011 | B45: BC | C45: 1 | D45: UNI BASTIONS | E45: A | F45: BU | G45: BUREAU | H45: Bureaux (Bü) | I45: 392 | J45: 17.5
A46: 2011 | B46: BC | C46: 1 | D46: UNI BASTIONS | E46: A | F46: BU | G46: BUREAU | H46: Bureaux (Bü) | I46: 392 | J46: 19
A47: 2011 | B47: BC | C47: 1 | D47: UNI BASTIONS | E47: A | F47: BU | G47: BUREAU | H47: Bureaux (Bü) | I47: 392 | J47: 19
A48: 2011 | B48: BC | C48: 1 | D48: UNI BASTIONS | E48: A | F48: BU | G48: BUREAU | H48: Bureaux (Bü) | I48: 392 | J48: 19.5
A49: 2011 | B49: BC | C49: 1 | D49: UNI BASTIONS | E49: A | F49: BU | G49: BUREAU | H49: Bureaux (Bü) | I49: 392 | J49: 20.5
A50: 2011 | B50: BC | C50: 1 | D50: UNI BASTIONS | E50: A | F50: BU | G50: BUREAU | H50: Bureaux (Bü) | I50: 392 | J50: 23
A51: 2011 | B51: BC | C51: 1 | D51: UNI BASTIONS | E51: A | F51: BU | G51: BUREAU | H51: Bureaux (Bü) | I51: 392 | J51: 23
A52: 2011 | B52: BC | C52: 1 | D52: UNI BASTIONS | E52: A | F52: BU | G52: BUREAU | H52: Bureaux (Bü) | I52: 392 | J52: 23.5
A53: 2011 | B53: BC | C53: 1 | D53: UNI BASTIONS | E53: A | F53: BU | G53: BUREAU | H53: Bureaux (Bü) | I53: 392 | J53: 23.5
A54: 2011 | B54: BC | C54: 1 | D54: UNI BASTIONS | E54: A | F54: BU | G54: BUREAU | H54: Bureaux (Bü) | I54: 392 | J54: 23.5
A55: 2011 | B55: BC | C55: 1 | D55: UNI BASTIONS | E55: A | F55: BU | G55: BUREAU | H55: Bureaux (Bü) | I55: 392 | J55: 24
A56: 2011 | B56: BC | C56: 1 | D56: UNI BASTIONS | E56: A | F56: BU | G56: BUREAU | H56: Bureaux (Bü) | I56: 392 | J56: 25
A57: 2011 | B57: BC | C57: 1 | D57: UNI BASTIONS | E57: A | F57: BU | G57: BUREAU | H57: Bureaux (Bü) | I57: 392 | J57: 25
A58: 2011 | B58: BC | C58: 1 | D58: UNI BASTIONS | E58: A | F58: BU | G58: BUREAU | H58: Bureaux (Bü) | I58: 392 | J58: 25
A59: 2011 | B59: BC | C59: 1 | D59: UNI BASTIONS | E59: A | F59: BU | G59: BUREAU | H59: Bureaux (Bü) | I59: 392 | J59: 25.5
A60: 2011 | B60: BC | C60: 1 | D60: UNI BASTIONS | E60: A | F60: BU | G60: BUREAU | H60: Bureaux (Bü) | I60: 392 | J60: 25.5
A61: 2011 | B61: BC | C61: 1 | D61: UNI BASTIONS | E61: A | F61: BU | G61: BUREAU | H61: Bureaux (Bü) | I61: 392 | J61: 25.5
A62: 2011 | B62: BC | C62: 1 | D62: UNI BASTIONS | E62: A | F62: BU | G62: BUREAU | H62: Bureaux (Bü) | I62: 392 | J62: 29
A63: 2011 | B63: BC | C63: 1 | D63: UNI BASTIONS | E63: A | F63: BU | G63: BUREAU | H63: Bureaux (Bü) | I63: 392 | J63: 29
A64: 2011 | B64: BC | C64: 1 | D64: UNI BASTIONS | E64: A | F64: BU | G64: BUREAU | H64: Bureaux (Bü) | I64: 392 | J64: 30.5
A65: 2011 | B65: BC | C65: 1 | D65: UNI BASTIONS | E65: A | F65: BU | G65: BUREAU | H65: Bureaux (Bü) | I65: 392 | J65: 30.5
A66: 2011 | B66: BC | C66: 1 | D66: UNI BASTIONS | E66: A | F66: BU | G66: BUREAU | H66: Bureaux (Bü) | I66: 392 | J66: 32
A67: 2011 | B67: BC | C67: 1 | D67: UNI BASTIONS | E67: A | F67: BU | G67: BUREAU | H67: Bureaux (Bü) | I67: 392 | J67: 32.5
A68: 2011 | B68: BC | C68: 1 | D68: UNI BASTIONS | E68: A | F68: BU | G68: BUREAU | H68: Bureaux (Bü) | I68: 392 | J68: 32.5
A69: 2011 | B69: BC | C69: 1 | D69: UNI BASTIONS | E69: A | F69: BU | G69: BUREAU | H69: Bureaux (Bü) | I69: 392 | J69: 32.5
A70: 2011 | B70: BC | C70: 1 | D70: UNI BASTIONS | E70: A | F70: BU | G70: BUREAU | H70: Bureaux (Bü) | I70: 392 | J70: 33.5
A71: 2011 | B71: BC | C71: 1 | D71: UNI BASTIONS | E71: A | F71: BU | G71: BUREAU | H71: Bureaux (Bü) | I71: 392 | J71: 33.5
A72: 2011 | B72: BC | C72: 1 | D72: UNI BASTIONS | E72: A | F72: BU | G72: BUREAU | H72: Bureaux (Bü) | I72: 392 | J72: 36
A73: 2011 | B73: BC | C73: 1 | D73: UNI BASTIONS | E73: A | F73: BU | G73: BUREAU | H73: Bureaux (Bü) | I73: 392 | J73: 36.5
A74: 2011 | B74: BC | C74: 1 | D74: UNI BASTIONS | E74: A | F74: BU | G74: BUREAU | H74: Bureaux (Bü) | I74: 392 | J74: 43.5
A75: 2011 | B75: BC | C75: 1 | D75: UNI BASTIONS | E75: A | F75: BU | G75: BUREAU | H75: Bureaux (Bü) | I75: 392 | J75: 45.5
A76: 2011 | B76: BC | C76: 1 | D76: UNI BASTIONS | E76: A | F76: BU | G76: BUREAU | H76: Bureaux (Bü) | I76: 392 | J76: 90
A77: 2011 | B77: BC | C77: 1 | D77: UNI BASTIONS | E77: A | F77: CA | G77: CAFETERIA | H77: Locaux du domaine social (So) | I77: 430 | J77: 4.5
A78: 2011 | B78: BC | C78: 1 | D78: UNI BASTIONS | E78: A | F78: CA | G78: CAFETERIA | H78: Locaux du domaine social (So) | I78: 430 | J78: 12.5
A79: 2011 | B79: BC | C79: 1 | D79: UNI BASTIONS | E79: A | F79: CA | G79: CAFETERIA | H79: Locaux du domaine social (So) | I79: 430 | J79: 23
A80: 2011 | B80: BC | C80: 1 | D80: UNI BASTIONS | E80: A | F80: CA | G80: CAFETERIA | H80: Locaux du domaine social (So) | I80: 430 | J80: 80
A81: 2011 | B81: BC | C81: 1 | D81: UNI BASTIONS | E81: A | F81: CO | G81: COULOIR | H81: Local fictif - sans coût | I81: 0 | J81: 17
A82: 2011 | B82: BC | C82: 1 | D82: UNI BASTIONS | E82: A | F82: DP | G82: DEPOT | H82: Archivage et surfaces d'entreposage (Ar) | I82: 196 | J82: 10
A83: 2011 | B83: BC | C83: 1 | D83: UNI BASTIONS | E83: A | F83: DP | G83: DEPOT | H83: Archivage et surfaces d'entreposage (Ar) | I83: 196 | J83: 11.5
A84: 2011 | B84: BC | C84: 1 | D84: UNI BASTIONS | E84: A | F84: DP | G84: DEPOT | H84: Archivage et surfaces d'entreposage (Ar) | I84: 196 | J84: 23
A85: 2011 | B85: BC | C85: 1 | D85: UNI BASTIONS | E85: A | F85: MT | G85: MEDIATHEQUE | H85: Bibliothèques (Bi) | I85: 468 | J85: 76.5
A86: 2011 | B86: BC | C86: 1 | D86: UNI BASTIONS | E86: A | F86: MT | G86: MEDIATHEQUE | H86: Bibliothèques (Bi) | I86: 468 | J86: 112
A87: 2011 | B87: BC | C87: 1 | D87: UNI BASTIONS | E87: A | F87: NA | G87: NON ATTRIBUE | H87: Local fictif - sans coût | I87: 0 | J87: 3.5
A88: 2011 | B88: BC | C88: 1 | D88: UNI BASTIONS | E88: A | F88: NA | G88: NON ATTRIBUE | H88: Local fictif - sans coût | I88: 0 | J88: 7
A89: 2011 | B89: BC | C89: 1 | D89: UNI BASTIONS | E89: A | F89: NA | G89: NON ATTRIBUE | H89: Local fictif - sans coût | I89: 0 | J89: 7
A90: 2011 | B90: BC | C90: 1 | D90: UNI BASTIONS | E90: A | F90: NA | G90: NON ATTRIBUE | H90: Local fictif - sans coût | I90: 0 | J90: 11.5
A91: 2011 | B91: BC | C91: 1 | D91: UNI BASTIONS | E91: A | F91: NA | G91: NON ATTRIBUE | H91: Local fictif - sans coût | I91: 0 | J91: 12
A92: 2011 | B92: BC | C92: 1 | D92: UNI BASTIONS | E92: A | F92: NA | G92: NON ATTRIBUE | H92: Local fictif - sans coût | I92: 0 | J92: 14
A93: 2011 | B93: BC | C93: 1 | D93: UNI BASTIONS | E93: A | F93: NA | G93: NON ATTRIBUE | H93: Local fictif - sans coût | I93: 0 | J93: 15.5
A94: 2011 | B94: BC | C94: 1 | D94: UNI BASTIONS | E94: A | F94: NA | G94: NON ATTRIBUE | H94: Local fictif - sans coût | I94: 0 | J94: 15.5
A95: 2011 | B95: BC | C95: 1 | D95: UNI BASTIONS | E95: A | F95: NA | G95: NON ATTRIBUE | H95: Local fictif - sans coût | I95: 0 | J95: 16
A96: 2011 | B96: BC | C96: 1 | D96: UNI BASTIONS | E96: A | F96: NA | G96: NON ATTRIBUE | H96: Local fictif - sans coût | I96: 0 | J96: 16
A97: 2011 | B97: BC | C97: 1 | D97: UNI BASTIONS | E97: A | F97: NA | G97: NON ATTRIBUE | H97: Local fictif - sans coût | I97: 0 | J97: 16
A98: 2011 | B98: BC | C98: 1 | D98: UNI BASTIONS | E98: A | F98: NA | G98: NON ATTRIBUE | H98: Local fictif - sans coût | I98: 0 | J98: 23
A99: 2011 | B99: BC | C99: 1 | D99: UNI BASTIONS | E99: A | F99: NA | G99: NON ATTRIBUE | H99: Local fictif - sans coût | I99: 0 | J99: 24
A100: 2011 | B100: BC | C100: 1 | D100: UNI BASTIONS | E100: A | F100: NA | G100: NON ATTRIBUE | H100: Local fictif - sans coût | I100: 0 | J100: 25
A101: 2011 | B101: BC | C101: 1 | D101: UNI BASTIONS | E101: A | F101: NA | G101: NON ATTRIBUE | H101: Local fictif - sans coût | I101: 0 | J101: 26.5
A102: 2011 | B102: BC | C102: 1 | D102: UNI BASTIONS | E102: A | F102: NA | G102: NON ATTRIBUE | H102: Local fictif - sans coût | I102: 0 | J102: 27.5
A103: 2011 | B103: BC | C103: 1 | D103: UNI BASTIONS | E103: A | F103: NA | G103: NON ATTRIBUE | H103: Local fictif - sans coût | I103: 0 | J103: 29
A104: 2011 | B104: BC | C104: 1 | D104: UNI BASTIONS | E104: A | F104: PC | G104: SALLE DE TERMINAUX | H104: Laboratoires (La) | I104: 805 | J104: 29.5
A105: 2011 | B105: BC | C105: 1 | D105: UNI BASTIONS | E105: A | F105: PC | G105: SALLE DE TERMINAUX | H105: Laboratoires (La) | I105: 805 | J105: 42.5
A106: 2011 | B106: BC | C106: 1 | D106: UNI BASTIONS | E106: A | F106: PC | G106: SALLE DE TERMINAUX | H106: Laboratoires (La) | I106: 805 | J106: 133.5
A107: 2011 | B107: BC | C107: 1 | D107: UNI BASTIONS | E107: A | F107: RE | G107: SALLE DE REUNION | H107: Salles d'enseignement (UR) | I107: 392 | J107: 36
A108: 2011 | B108: BC | C108: 1 | D108: UNI BASTIONS | E108: A | F108: SM | G108: SALLE DE SEMINAIRE / COURS | H108: Salles d'enseignement (UR) | I108: 392 | J108: 26
A109: 2011 | B109: BC | C109: 1 | D109: UNI BASTIONS | E109: A | F109: SM | G109: SALLE DE SEMINAIRE / COURS | H109: Salles d'enseignement (UR) | I109: 392 | J109: 32
A110: 2011 | B110: BC | C110: 1 | D110: UNI BASTIONS | E110: A | F110: SM | G110: SALLE DE SEMINAIRE / COURS | H110: Salles d'enseignement (UR) | I110: 392 | J110: 37
A111: 2011 | B111: BC | C111: 1 | D111: UNI BASTIONS | E111: A | F111: SM | G111: SALLE DE SEMINAIRE / COURS | H111: Salles d'enseignement (UR) | I111: 392 | J111: 40
A112: 2011 | B112: BC | C112: 1 | D112: UNI BASTIONS | E112: A | F112: SM | G112: SALLE DE SEMINAIRE / COURS | H112: Salles d'enseignement (UR) | I112: 392 | J112: 40
A113: 2011 | B113: BC | C113: 1 | D113: UNI BASTIONS | E113: A | F113: SM | G113: SALLE DE SEMINAIRE / COURS | H113: Salles d'enseignement (UR) | I113: 392 | J113: 44
A114: 2011 | B114: BC | C114: 1 | D114: UNI BASTIONS | E114: A | F114: SM | G114: SALLE DE SEMINAIRE / COURS | H114: Salles d'enseignement (UR) | I114: 392 | J114: 45
A115: 2011 | B115: BC | C115: 1 | D115: UNI BASTIONS | E115: A | F115: SM | G115: SALLE DE SEMINAIRE / COURS | H115: Salles d'enseignement (UR) | I115: 392 | J115: 45
A116: 2011 | B116: BC | C116: 1 | D116: UNI BASTIONS | E116: A | F116: SM | G116: SALLE DE SEMINAIRE / COURS | H116: Salles d'enseignement (UR) | I116: 392 | J116: 60.5
A117: 2011 | B117: BC | C117: 1 | D117: UNI BASTIONS | E117: A | F117: SM | G117: SALLE DE SEMINAIRE / COURS | H117: Salles d'enseignement (UR) | I117: 392 | J117: 68.5
A118: 2011 | B118: BC | C118: 1 | D118: UNI BASTIONS | E118: A | F118: SM | G118: SALLE DE SEMINAIRE / COURS | H118: Salles d'enseignement (UR) | I118: 392 | J118: 78
A119: 2011 | B119: BC | C119: 1 | D119: UNI BASTIONS | E119: A | F119: SM | G119: SALLE DE SEMINAIRE / COURS | H119: Salles d'enseignement (UR) | I119: 392 | J119: 115.5
A120: 2011 | B120: BC | C120: 1 | D120: UNI BASTIONS | E120: A | F120: SM | G120: SALLE DE SEMINAIRE / COURS | H120: Salles d'enseignement (UR) | I120: 392 | J120: 117
A121: 2011 | B121: BC | C121: 1 | D121: UNI BASTIONS | E121: A | F121: SM | G121: SALLE DE SEMINAIRE / COURS | H121: Salles d'enseignement (UR) | I121: 392 | J121: 210
A122: 2011 | B122: BC | C122: 1 | D122: UNI BASTIONS | E122: A | F122: ST | G122: STOCKAGE | H122: Archivage et surfaces d'entreposage (Ar) | I122: 196 | J122: 7.5
A123: 2011 | B123: BC | C123: 1 | D123: UNI BASTIONS | E123: A | F123: ST | G123: STOCKAGE | H123: Archivage et surfaces d'entreposage (Ar) | I123: 196 | J123: 23
A124: 2011 | B124: BC | C124: 1 | D124: UNI BASTIONS | E124: A | F124: ST | G124: STOCKAGE | H124: Archivage et surfaces d'entreposage (Ar) | I124: 196 | J124: 40
A125: 2011 | B125: BC | C125: 1 | D125: UNI BASTIONS | E125: A | F125: ST | G125: STOCKAGE | H125: Archivage et surfaces d'entreposage (Ar) | I125: 196 | J125: 67
A126: 2011 | B126: AJ | C126: 2 | D126: AILE JURA | E126: A | F126: AR | G126: ARCHIVES | H126: Archivage et surfaces d'entreposage (Ar) | I126: 196 | J126: 5.5
A127: 2011 | B127: AJ | C127: 2 | D127: AILE JURA | E127: A | F127: AT | G127: ATELIER | H127: Laboratoires (La) | I127: 805 | J127: 15.5
A128: 2011 | B128: AJ | C128: 2 | D128: AILE JURA | E128: A | F128: AT | G128: ATELIER | H128: Laboratoires (La) | I128: 805 | J128: 38.5
A129: 2011 | B129: AJ | C129: 2 | D129: AILE JURA | E129: A | F129: AX | G129: ANNEXES | H129: Archivage et surfaces d'entreposage (Ar) | I129: 196 | J129: 88.1
A130: 2011 | B130: AJ | C130: 2 | D130: AILE JURA | E130: A | F130: BI | G130: BIBLIOTHEQUE, SALLE DE LECTURE | H130: Bibliothèques (Bi) | I130: 468 | J130: 15
A131: 2011 | B131: AJ | C131: 2 | D131: AILE JURA | E131: A | F131: BI | G131: BIBLIOTHEQUE, SALLE DE LECTURE | H131: Bibliothèques (Bi) | I131: 468 | J131: 23.5
A132: 2011 | B132: AJ | C132: 2 | D132: AILE JURA | E132: A | F132: BI | G132: BIBLIOTHEQUE, SALLE DE LECTURE | H132: Bibliothèques (Bi) | I132: 468 | J132: 31.5
A133: 2011 | B133: AJ | C133: 2 | D133: AILE JURA | E133: A | F133: BI | G133: BIBLIOTHEQUE, SALLE DE LECTURE | H133: Bibliothèques (Bi) | I133: 468 | J133: 34.5
A134: 2011 | B134: AJ | C134: 2 | D134: AILE JURA | E134: A | F134: BI | G134: BIBLIOTHEQUE, SALLE DE LECTURE | H134: Bibliothèques (Bi) | I134: 468 | J134: 51
A135: 2011 | B135: AJ | C135: 2 | D135: AILE JURA | E135: A | F135: BI | G135: BIBLIOTHEQUE, SALLE DE LECTURE | H135: Bibliothèques (Bi) | I135: 468 | J135: 52
A136: 2011 | B136: AJ | C136: 2 | D136: AILE JURA | E136: A | F136: BI | G136: BIBLIOTHEQUE, SALLE DE LECTURE | H136: Bibliothèques (Bi) | I136: 468 | J136: 61
A137: 2011 | B137: AJ | C137: 2 | D137: AILE JURA | E137: A | F137: BI | G137: BIBLIOTHEQUE, SALLE DE LECTURE | H137: Bibliothèques (Bi) | I137: 468 | J137: 85.5
A138: 2011 | B138: AJ | C138: 2 | D138: AILE JURA | E138: A | F138: BI | G138: BIBLIOTHEQUE, SALLE DE LECTURE | H138: Bibliothèques (Bi) | I138: 468 | J138: 85.5
A139: 2011 | B139: AJ | C139: 2 | D139: AILE JURA | E139: A | F139: BI | G139: BIBLIOTHEQUE, SALLE DE LECTURE | H139: Bibliothèques (Bi) | I139: 468 | J139: 85.5
A140: 2011 | B140: AJ | C140: 2 | D140: AILE JURA | E140: A | F140: BI | G140: BIBLIOTHEQUE, SALLE DE LECTURE | H140: Bibliothèques (Bi) | I140: 468 | J140: 184.5
A141: 2011 | B141: AJ | C141: 2 | D141: AILE JURA | E141: A | F141: BI | G141: BIBLIOTHEQUE, SALLE DE LECTURE | H141: Bibliothèques (Bi) | I141: 468 | J141: 226
A142: 2011 | B142: AJ | C142: 2 | D142: AILE JURA | E142: A | F142: BI | G142: BIBLIOTHEQUE, SALLE DE LECTURE | H142: Bibliothèques (Bi) | I142: 468 | J142: 239
A143: 2011 | B143: AJ | C143: 2 | D143: AILE JURA | E143: A | F143: BI | G143: BIBLIOTHEQUE, SALLE DE LECTURE | H143: Bibliothèques (Bi) | I143: 468 | J143: 244
A144: 2011 | B144: AJ | C144: 2 | D144: AILE JURA | E144: A | F144: BI | G144: BIBLIOTHEQUE, SALLE DE LECTURE | H144: Bibliothèques (Bi) | I144: 468 | J144: 248
A145: 2011 | B145: AJ | C145: 2 | D145: AILE JURA | E145: A | F145: BI | G145: BIBLIOTHEQUE, SALLE DE LECTURE | H145: Bibliothèques (Bi) | I145: 468 | J145: 272.5
A146: 2011 | B146: AJ | C146: 2 | D146: AILE JURA | E146: A | F146: BI | G146: BIBLIOTHEQUE, SALLE DE LECTURE | H146: Bibliothèques (Bi) | I146: 468 | J146: 467
A147: 2011 | B147: AJ | C147: 2 | D147: AILE JURA | E147: A | F147: BU | G147: BUREAU | H147: Bureaux (Bü) | I147: 392 | J147: 13
A148: 2011 | B148: AJ | C148: 2 | D148: AILE JURA | E148: A | F148: BU | G148: BUREAU | H148: Bureaux (Bü) | I148: 392 | J148: 15
A149: 2011 | B149: AJ | C149: 2 | D149: AILE JURA | E149: A | F149: BU | G149: BUREAU | H149: Bureaux (Bü) | I149: 392 | J149: 15
A150: 2011 | B150: AJ | C150: 2 | D150: AILE JURA | E150: A | F150: BU | G150: BUREAU | H150: Bureaux (Bü) | I150: 392 | J150: 15
A151: 2011 | B151: AJ | C151: 2 | D151: AILE JURA | E151: A | F151: BU | G151: BUREAU | H151: Bureaux (Bü) | I151: 392 | J151: 17
A152: 2011 | B152: AJ | C152: 2 | D152: AILE JURA | E152: A | F152: BU | G152: BUREAU | H152: Bureaux (Bü) | I152: 392 | J152: 17
A153: 2011 | B153: AJ | C153: 2 | D153: AILE JURA | E153: A | F153: BU | G153: BUREAU | H153: Bureaux (Bü) | I153: 392 | J153: 17.5
A154: 2011 | B154: AJ | C154: 2 | D154: AILE JURA | E154: A | F154: BU | G154: BUREAU | H154: Bureaux (Bü) | I154: 392 | J154: 17.5
A155: 2011 | B155: AJ | C155: 2 | D155: AILE JURA | E155: A | F155: BU | G155: BUREAU | H155: Bureaux (Bü) | I155: 392 | J155: 18
A156: 2011 | B156: AJ | C156: 2 | D156: AILE JURA | E156: A | F156: BU | G156: BUREAU | H156: Bureaux (Bü) | I156: 392 | J156: 18
A157: 2011 | B157: AJ | C157: 2 | D157: AILE JURA | E157: A | F157: BU | G157: BUREAU | H157: Bureaux (Bü) | I157: 392 | J157: 18
A158: 2011 | B158: AJ | C158: 2 | D158: AILE JURA | E158: A | F158: BU | G158: BUREAU | H158: Bureaux (Bü) | I158: 392 | J158: 18
A159: 2011 | B159: AJ | C159: 2 | D159: AILE JURA | E159: A | F159: BU | G159: BUREAU | H159: Bureaux (Bü) | I159: 392 | J159: 18
A160: 2011 | B160: AJ | C160: 2 | D160: AILE JURA | E160: A | F160: BU | G160: BUREAU | H160: Bureaux (Bü) | I160: 392 | J160: 18
A161: 2011 | B161: AJ | C161: 2 | D161: AILE JURA | E161: A | F161: BU | G161: BUREAU | H161: Bureaux (Bü) | I161: 392 | J161: 18
A162: 2011 | B162: AJ | C162: 2 | D162: AILE JURA | E162: A | F162: BU | G162: BUREAU | H162: Bureaux (Bü) | I162: 392 | J162: 18
A163: 2011 | B163: AJ | C163: 2 | D163: AILE JURA | E163: A | F163: BU | G163: BUREAU | H163: Bureaux (Bü) | I163: 392 | J163: 18
A164: 2011 | B164: AJ | C164: 2 | D164: AILE JURA | E164: A | F164: BU | G164: BUREAU | H164: Bureaux (Bü) | I164: 392 | J164: 18
A165: 2011 | B165: AJ | C165: 2 | D165: AILE JURA | E165: A | F165: BU | G165: BUREAU | H165: Bureaux (Bü) | I165: 392 | J165: 18
A166: 2011 | B166: AJ | C166: 2 | D166: AILE JURA | E166: A | F166: BU | G166: BUREAU | H166: Bureaux (Bü) | I166: 392 | J166: 18
A167: 2011 | B167: AJ | C167: 2 | D167: AILE JURA | E167: A | F167: BU | G167: BUREAU | H167: Bureaux (Bü) | I167: 392 | J167: 18
A168: 2011 | B168: AJ | C168: 2 | D168: AILE JURA | E168: A | F168: BU | G168: BUREAU | H168: Bureaux (Bü) | I168: 392 | J168: 19.5
A169: 2011 | B169: AJ | C169: 2 | D169: AILE JURA | E169: A | F169: BU | G169: BUREAU | H169: Bureaux (Bü) | I169: 392 | J169: 20
A170: 2011 | B170: AJ | C170: 2 | D170: AILE JURA | E170: A | F170: BU | G170: BUREAU | H170: Bureaux (Bü) | I170: 392 | J170: 20
A171: 2011 | B171: AJ | C171: 2 | D171: AILE JURA | E171: A | F171: BU | G171: BUREAU | H171: Bureaux (Bü) | I171: 392 | J171: 20
A172: 2011 | B172: AJ | C172: 2 | D172: AILE JURA | E172: A | F172: BU | G172: BUREAU | H172: Bureaux (Bü) | I172: 392 | J172: 20
A173: 2011 | B173: AJ | C173: 2 | D173: AILE JURA | E173: A | F173: BU | G173: BUREAU | H173: Bureaux (Bü) | I173: 392 | J173: 20
A174: 2011 | B174: AJ | C174: 2 | D174: AILE JURA | E174: A | F174: BU | G174: BUREAU | H174: Bureaux (Bü) | I174: 392 | J174: 20
A175: 2011 | B175: AJ | C175: 2 | D175: AILE JURA | E175: A | F175: BU | G175: BUREAU | H175: Bureaux (Bü) | I175: 392 | J175: 20
A176: 2011 | B176: AJ | C176: 2 | D176: AILE JURA | E176: A | F176: BU | G176: BUREAU | H176: Bureaux (Bü) | I176: 392 | J176: 20
A177: 2011 | B177: AJ | C177: 2 | D177: AILE JURA | E177: A | F177: BU | G177: BUREAU | H177: Bureaux (Bü) | I177: 392 | J177: 21.5
A178: 2011 | B178: AJ | C178: 2 | D178: AILE JURA | E178: A | F178: BU | G178: BUREAU | H178: Bureaux (Bü) | I178: 392 | J178: 21.5
A179: 2011 | B179: AJ | C179: 2 | D179: AILE JURA | E179: A | F179: BU | G179: BUREAU | H179: Bureaux (Bü) | I179: 392 | J179: 21.5
A180: 2011 | B180: AJ | C180: 2 | D180: AILE JURA | E180: A | F180: BU | G180: BUREAU | H180: Bureaux (Bü) | I180: 392 | J180: 21.5
A181: 2011 | B181: AJ | C181: 2 | D181: AILE JURA | E181: A | F181: BU | G181: BUREAU | H181: Bureaux (Bü) | I181: 392 | J181: 21.5
A182: 2011 | B182: AJ | C182: 2 | D182: AILE JURA | E182: A | F182: BU | G182: BUREAU | H182: Bureaux (Bü) | I182: 392 | J182: 23
A183: 2011 | B183: AJ | C183: 2 | D183: AILE JURA | E183: A | F183: BU | G183: BUREAU | H183: Bureaux (Bü) | I183: 392 | J183: 25
A184: 2011 | B184: AJ | C184: 2 | D184: AILE JURA | E184: A | F184: BU | G184: BUREAU | H184: Bureaux (Bü) | I184: 392 | J184: 25.5
A185: 2011 | B185: AJ | C185: 2 | D185: AILE JURA | E185: A | F185: BU | G185: BUREAU | H185: Bureaux (Bü) | I185: 392 | J185: 25.5
A186: 2011 | B186: AJ | C186: 2 | D186: AILE JURA | E186: A | F186: BU | G186: BUREAU | H186: Bureaux (Bü) | I186: 392 | J186: 25.5
A187: 2011 | B187: AJ | C187: 2 | D187: AILE JURA | E187: A | F187: BU | G187: BUREAU | H187: Bureaux (Bü) | I187: 392 | J187: 26
A188: 2011 | B188: AJ | C188: 2 | D188: AILE JURA | E188: A | F188: BU | G188: BUREAU | H188: Bureaux (Bü) | I188: 392 | J188: 26
A189: 2011 | B189: AJ | C189: 2 | D189: AILE JURA | E189: A | F189: BU | G189: BUREAU | H189: Bureaux (Bü) | I189: 392 | J189: 26
A190: 2011 | B190: AJ | C190: 2 | D190: AILE JURA | E190: A | F190: BU | G190: BUREAU | H190: Bureaux (Bü) | I190: 392 | J190: 27
A191: 2011 | B191: AJ | C191: 2 | D191: AILE JURA | E191: A | F191: BU | G191: BUREAU | H191: Bureaux (Bü) | I191: 392 | J191: 27.5
A192: 2011 | B192: AJ | C192: 2 | D192: AILE JURA | E192: A | F192: BU | G192: BUREAU | H192: Bureaux (Bü) | I192: 392 | J192: 27.5
A193: 2011 | B193: AJ | C193: 2 | D193: AILE JURA | E193: A | F193: BU | G193: BUREAU | H193: Bureaux (Bü) | I193: 392 | J193: 27.5
A194: 2011 | B194: AJ | C194: 2 | D194: AILE JURA | E194: A | F194: BU | G194: BUREAU | H194: Bureaux (Bü) | I194: 392 | J194: 29.5
A195: 2011 | B195: AJ | C195: 2 | D195: AILE JURA | E195: A | F195: CO | G195: COULOIR | H195: Local fictif - sans coût | I195: 0 | J195: 56.25
A196: 2011 | B196: AJ | C196: 2 | D196: AILE JURA | E196: A | F196: CO | G196: COULOIR | H196: Local fictif - sans coût | I196: 0 | J196: 61.8
A197: 2011 | B197: AJ | C197: 2 | D197: AILE JURA | E197: A | F197: CO | G197: COULOIR | H197: Local fictif - sans coût | I197: 0 | J197: 125.15
A198: 2011 | B198: AJ | C198: 2 | D198: AILE JURA | E198: A | F198: CO | G198: COULOIR | H198: Local fictif - sans coût | I198: 0 | J198: 169.8
A199: 2011 | B199: AJ | C199: 2 | D199: AILE JURA | E199: A | F199: DP | G199: DEPOT | H199: Archivage et surfaces d'entreposage (Ar) | I199: 196 | J199: 5.5
A200: 2011 | B200: AJ | C200: 2 | D200: AILE JURA | E200: A | F200: DP | G200: DEPOT | H200: Archivage et surfaces d'entreposage (Ar) | I200: 196 | J200: 5.5
... 5524 more rows

Sheet Salaire moyen 2012 et 2011 (hidden)
A1: UNIGE - UNIVERSITE DE GENEVE (UNIGE) - année 2012 | B1: Salaire moyen du Budget 2012 UNIGE avec salaire des postes occupés 2011
D3: Budget (P) 2012 | E3: Budget (F) 2012 | F3: Salaire moyen (F) Budget 2012 | G3: Postes occupés 2011 | H3: Consommation (F) 2011 | I3: Salaire moyen (F) 2011 des Postes occupés
A4: POSTE | B4: 1-C.Prof. | C4: 0100-Professeurs ordinaires | D4: 348.9 | E4: 72779797 | F4: =E4/D4 -> 208597.8704 | G4: 291.76 | H4: 62092716.8 | I4: =H4/G4 -> 212821.212
C5: 0150-Professeurs associés | D5: 113.04 | E5: 18354397 | F5: 162370.8156 | G5: 86.846 | H5: 14054147.85 | I5: =H5/G5 -> 161828.3842
C6: 0200-Professeurs assistants | D6: 10.25 | E6: 1421221 | F6: 138655.7073 | G6: 5.877 | H6: 815334.85 | I6: =H6/G6 -> 138733.1717
C7: 0400-Professeurs adjoints | D7: 0.5 | E7: 81000 | F7: 162000
C8: 0500-Professeurs associés (PAE 73) | D8: 3.83 | E8: 593650 | F8: 155000 | H8: 10505.9
C9: 0600-Professeurs titulaires | D9: 20.15 | E9: 3291827 | F9: 163366.1042 | G9: 21.423 | H9: 3537579.8 | I9: =H9/G9 -> 165129.9911
C10: 0801-Salaires remplacements DIP | E10: 987422 | H10: =1107687.55+29016.15 -> 1136703.7
C11: 0803-Indemnités spéciales fonction | E11: 1538650 | H11: =1245866.15 -> 1245866.15
C12: 0809-Economie temporaire CP | E12: -728498
C13: 0805- Traitements remboursés | H13: -324618.4
C14: 0899 Crédits salaires | E14: =SUM(E10:E13) -> 1797574 | H14: =SUM(H10:H13) -> 2057951.45
C15: 1-C.Prof. | D15: 496.67 | E15: 98319466 | G15: =SUM(G4:G13) -> 405.906 | H15: =SUM(H4:H13) -> 82568236.65
B16: 2-C.Ens. | C16: 1100-Chargés d'Ens. , Cons. Etudes | D16: 162.91 | E16: 21344355 | F16: =E16/D16 -> 131019.3051 | G16: 181.631 | H16: 23756043.05 | I16: =H16/G16 -> 130792.8881
C17: 1200-MER,chefs de clinique scient. | D17: 122.1 | E17: 18187188 | F17: 148953.2187 | G17: 140.505 | H17: 21279524.23 | I17: 151450.2988
C18: 1220-Chargés de cours | D18: 28.27 | E18: 4347469 | F18: 153783.8345 | G18: 38.405 | H18: 5850754.55 | I18: 152343.5633
C19: 1260-Coll. scientifique I et II | D19: 35.8 | E19: 4218031 | F19: 117822.095 | G19: 37.815 | H19: 4304145.3 | I19: 113821.1107
C20: 1300-Maîtres assistants | D20: 139.64 | E20: 14298670 | F20: 102396.6628 | G20: 137.875 | H20: 14331761.65 | I20: 103947.5006
C21: 1400-Assistants et post-doc | D21: 598.94 | E21: 43919093 | F21: 73328.03453 | G21: 707.912 | H21: 51707515.8 | I21: 73042.29311
C22: 1401-Assistants-médecins | D22: 50.8 | E22: 4896073 | F22: 96379.38976 | G22: 35.578 | H22: 3463865.65 | I22: 97359.76306
C23: 1405-Crédits encadrement Taxes | D23: 79.26 | E23: 5706720 | F23: 72000
C24: 1510-Auxiliaires de Recherche | D24: 19.42 | E24: 1134863 | F24: 58437.84758 | G24: 23.49 | H24: 1380672.35 | I24: =H24/G24 -> 58777.02639
C25: 1701-Crédits traitements ens. DIP | E25: 4892698 | H25: =297456.1+3663436.6+106279.85+4762.8-236630.95 -> 3835304.4
C26: 1705-Indemn. spéc. FEP (ex LME) | E26: 665000 | H26: 750450
C27: 1709-Economie temporaire CE | E27: -241143
C28: 1799 Crédits salaires | E28: =SUM(E25:E27) -> 5316555 | H28: =SUM(H25:H27) -> 4585754.4
C29: 2-C.Ens. | D29: 1237.14 | E29: 123369017 | G29: =SUM(G16:G27) -> 1303.211 | H29: =SUM(H16:H27) -> 130660037
B30: 3-Pat | C30: 2000-Personnel scientifiques | D30: 211.3 | E30: 27364917 | F30: =E30/D30 -> 129507.416 | G30: 198.302 | H30: 25836649.28 | I30: =H30/G30 -> 130289.4034
C31: 2100-Techniciens | D31: 89.35 | E31: 9237793 | F31: 103388.8416 | G31: 75.636 | H31: 7917603.5 | I31: 104680.3572
C32: 2200-Laborants et ass. techniques | D32: 278.55 | E32: 25838879 | F32: 92762.0858 | G32: 271.808 | H32: 25481529.55 | I32: 93748.26918
C33: 2300-Aides ass. techn et aides labo | D33: 57.8 | E33: 4495969 | F33: 77784.9308 | G33: 57.984 | H33: 4463542.65 | I33: 76978.86745
C34: 2400-Bibliothécaires, documentalist | D34: 20.95 | E34: 2135583 | F34: 101937.136 | G34: 24.349 | H34: 2567184.25 | I34: 105432.8412
C35: 2700-Adm, chefs serv, commis adm | D35: 176.07 | E35: 21909914 | F35: 124438.6551 | G35: 161.965 | H35: =20124447.4+52426.58 -> 20176873.98 | I35: 124575.5193
C36: 2705-Coordination info documentaire | D36: 5.5 | E36: 611083 | F36: 111106 | G36: 4.784 | H36: 526189.7 | I36: 109989.4858
C37: 2710-BDA Responsables | D37: 31.65 | E37: 3396868 | F37: 107326.0032 | G37: 28.069 | H37: 3035961.3 | I37: 108160.6505
C38: 2715-BDA Spécialistes disciplines | D38: 18.5 | E38: 1901190 | F38: 102767.027 | G38: 17.246 | H38: 1787536.05 | I38: 103649.3129
C39: 2800-Secr, comptables, aide bibl | D39: 299.05 | E39: 26399727 | F39: 88278.63902 | G39: 290.395 | H39: 25709710.6 | I39: 88533.58563
C40: 2805-Commis 2 DIS | D40: 1.2 | E40: 98771 | F40: 82309.16667 | G40: 0.607 | H40: 46547.2 | I40: 76684.01977
C41: 3302-Crédits pour remplacements UNI | E41: 4746157 | H41: =904443.5+2871850.2+124434.7+132442.1-122634.2+15981.6+16975.8 -> 3943493.7
C42: 3303-Salaires des apprentis | E42: 591180 | H42: 600664.05
C43: 3313-Salaires des stagiaires | E43: 170340 | H43: 127336.1
C44: 3315-Economie temporaire PAT | E44: -145132
C45: 3399 Crédits salaires | E45: =SUM(E41:E44) -> 5362545 | H45: =SUM(H41:H44) -> 4671493.85
C46: 3-Pat | D46: 1189.92 | E46: 128753239 | G46: =SUM(G30:G44) -> 1131.145 | H46: =SUM(H30:H44) -> 122220821.9
B47: POSTE | D47: 2923.73 | E47: 350441722 | G47: =G15+G29+G46 -> 2840.262 | H47: =H15+H29+H46 -> 335449095.5
A48: Sans POSTE | B48: *-ND | C48: ****-Primes/Bonus (2-C.Ens.) | E48: 761665
C49: ****-Primes/Bonus (3-Pat) | E49: 546536
C50: ****-Primes/Bonus (4-C.Soc.) | E50: 72227189
C51: ****-Primes/Bonus (4-Nat.306,307) | E51: 760000
C52: *-ND | E52: 74295390
B53: 9-Autre | C53: 3790-Frais d'annonces | E53: 200000
C54: 3792-Annullation des frais de form. | E54: -11207
C55: 3793-Frais de formation générales | E55: 351652
C56: 3794-Frais de formation spécifiques | E56: 223000
C57: 3850-Non-dépenses | E57: -7601000
C58: 3860-Correction prorata du budget | E58: -452680
C59: 3870-Gel budgétaire | E59: -2823890
C60: 9-Autre | E60: -10114125
B61: Sans POSTE | E61: 64181265
A62: Total | D62: 2923.73 | E62: 414622987
A65: Voir le détail des simulations | B65: Source : Cognos CBUD 0012
